[Event "Titled Tuesday Blitz August 17 2021"]
[White "Seul, Georg"]
[Black "Itkis, Boris"]
[WhiteFideId "4601653"]
[BlackFideId "1209167"]
[WhiteElo "2332"]
[BlackElo "2226"]
[Result "1-0"]
[Round "04"]
[TimeControl "180+1"]
[Date "2021.08.18"]
[WhiteClock "0:00:09"]
[BlackClock "0:00:09"]

1. e4 {[%clk 0:03:00]}  e5 {[%clk 0:02:58]} 2. Nc3 {[%clk 0:03:00]}  Nf6 {[%clk 0:02:58]} 3. f4 {[%clk 0:03:00]}  d5 {[%clk 0:02:58]} 4. fxe5 {[%clk 0:03:00]}  Nxe4 {[%clk 0:02:58]} 5. Qf3 {[%clk 0:03:01]}  Nxc3 {[%clk 0:02:58]} 6. bxc3 {[%clk 0:03:01]}  c5 {[%clk 0:02:51]} 7. Bb5+ {[%clk 0:03:00]}  Bd7 {[%clk 0:02:50]} 8. Rb1 {[%clk 0:02:54]}  Bxb5 {[%clk 0:02:47]} 9. Rxb5 {[%clk 0:02:53]}  Qd7 {[%clk 0:02:47]} 10. c4 {[%clk 0:02:53]}  a6 {[%clk 0:02:39]} 11. Rb1 {[%clk 0:02:52]}  Nc6 {[%clk 0:02:16]} 12. cxd5 {[%clk 0:02:46]}  Nxe5 {[%clk 0:02:12]} 13. Qe4 {[%clk 0:02:41]}  Qe7 {[%clk 0:02:11]} 14. Nf3 {[%clk 0:02:35]}  Nxf3+ {[%clk 0:02:10]} 15. gxf3 {[%clk 0:02:35]}  O-O-O {[%clk 0:02:05]} 16. Qxe7 {[%clk 0:02:30]}  Bxe7 {[%clk 0:02:05]} 17. c4 {[%clk 0:02:30]}  Bh4+ {[%clk 0:02:04]} 18. Kd1 {[%clk 0:02:17]}  Rhe8 {[%clk 0:02:03]} 19. Bb2 {[%clk 0:02:11]}  f6 {[%clk 0:01:57]} 20. a4 {[%clk 0:02:09]}  Re7 {[%clk 0:01:51]} 21. Bc3 {[%clk 0:02:09]}  Rde8 {[%clk 0:01:50]} 22. Kc2 {[%clk 0:02:09]}  Bg5 {[%clk 0:01:49]} 23. Rb6 {[%clk 0:02:00]}  Re2 {[%clk 0:01:40]} 24. Rhb1 {[%clk 0:01:58]}  R8e7 {[%clk 0:01:40]} 25. h3 {[%clk 0:01:43]}  Rf2 {[%clk 0:01:38]} 26. Ba5 {[%clk 0:01:36]}  Bf4 {[%clk 0:01:23]} 27. R1b3 {[%clk 0:00:46]}  Rh2 {[%clk 0:01:18]} 28. Rd3 {[%clk 0:00:35]}  Rxh3 {[%clk 0:01:01]} 29. d6 {[%clk 0:00:22]}  Rd7 {[%clk 0:01:01]} 30. Rd5 {[%clk 0:00:20]}  Rxf3 {[%clk 0:00:40]} 31. Rxc5+ {[%clk 0:00:20]}  Kb8 {[%clk 0:00:40]} 32. Rd5 {[%clk 0:00:20]}  g5 {[%clk 0:00:16]} 33. c5 {[%clk 0:00:20]}  Ka8 {[%clk 0:00:15]} 34. c6 {[%clk 0:00:20]}  bxc6 {[%clk 0:00:15]} 35. Rxc6 {[%clk 0:00:18]}  g4 {[%clk 0:00:16]} 36. Rc7 {[%clk 0:00:18]}  Rxc7+ {[%clk 0:00:13]} 37. dxc7 {[%clk 0:00:17]}  Kb7 {[%clk 0:00:13]} 38. Rc5 {[%clk 0:00:16]}  Kc8 {[%clk 0:00:12]} 39. Bb6 {[%clk 0:00:13]}  g3 {[%clk 0:00:12]} 40. Rf5 {[%clk 0:00:08]}  g2 {[%clk 0:00:12]} 41. Rxf6 {[%clk 0:00:07]}  Rf1 {[%clk 0:00:11]} 42. Rf8+ {[%clk 0:00:07]}  Kb7 {[%clk 0:00:10]} 43. c8=Q+ {[%clk 0:00:07]}  Kxb6 {[%clk 0:00:11]} 44. Rf6+ {[%clk 0:00:08]}  Ka5 {[%clk 0:00:10]} 45. Qxa6+ {[%clk 0:00:08]}  Kb4 {[%clk 0:00:10]} 46. Qb5+ {[%clk 0:00:08]}  Ka3 {[%clk 0:00:09]} 47. Qb3# {[%clk 0:00:09]} 1-0


[Site "https://www.chess.com"]

[Event "Titled Tuesday Blitz August 17 2021"]
[White "Shapiro, David"]
[Black "Nesterov, Arseniy"]
[WhiteFideId "24133523"]
[BlackFideId "24198455"]
[WhiteElo "2234"]
[BlackElo "2477"]
[Result "1-0"]
[Round "04"]
[TimeControl "180+1"]
[Date "2021.08.17"]
[WhiteClock "0:00:42"]
[BlackClock "0:00:02"]

1. d4 {[%clk 0:03:00]}  d5 {[%clk 0:02:59]} 2. Bf4 {[%clk 0:03:01]}  Nf6 {[%clk 0:02:59]} 3. Nc3 {[%clk 0:03:01]}  g6 {[%clk 0:02:48]} 4. e3 {[%clk 0:03:01]}  Bg7 {[%clk 0:02:48]} 5. h4 {[%clk 0:03:01]}  h5 {[%clk 0:02:46]} 6. Nf3 {[%clk 0:03:01]}  O-O {[%clk 0:02:45]} 7. Be2 {[%clk 0:02:59]}  c5 {[%clk 0:02:41]} 8. Ne5 {[%clk 0:02:51]}  cxd4 {[%clk 0:02:38]} 9. exd4 {[%clk 0:02:52]}  Nc6 {[%clk 0:02:36]} 10. Qd2 {[%clk 0:02:46]}  Bd7 {[%clk 0:02:16]} 11. O-O-O {[%clk 0:02:37]}  Rc8 {[%clk 0:02:15]} 12. Bh6 {[%clk 0:02:37]}  Bxh6 {[%clk 0:01:20]} 13. Qxh6 {[%clk 0:02:38]}  Nxe5 {[%clk 0:01:21]} 14. dxe5 {[%clk 0:02:36]}  Ng4 {[%clk 0:01:21]} 15. Bxg4 {[%clk 0:02:13]}  Bxg4 {[%clk 0:01:22]} 16. f3 {[%clk 0:02:14]}  Be6 {[%clk 0:01:12]} 17. g4 {[%clk 0:02:14]}  Rxc3 {[%clk 0:01:02]} 18. bxc3 {[%clk 0:02:13]}  Qa5 {[%clk 0:00:59]} 19. gxh5 {[%clk 0:01:44]}  Qa3+ {[%clk 0:00:57]} 20. Kd2 {[%clk 0:01:25]}  d4 {[%clk 0:00:39]} 21. cxd4 {[%clk 0:00:59]}  Rc8 {[%clk 0:00:19]} 22. hxg6 {[%clk 0:00:52]}  Qb4+ {[%clk 0:00:10]} 23. Ke3 {[%clk 0:00:44]}  Qc3+ {[%clk 0:00:02]} 24. Rd3 {[%clk 0:00:42]} 1-0


[Site "https://www.chess.com"]

[Event "Titled Tuesday Blitz August 17 2021"]
[White "Shimanov, Aleksandr"]
[Black "Poormosavi, Seyed Kian"]
[WhiteFideId "4198603"]
[BlackFideId "12585807"]
[WhiteElo "2596"]
[BlackElo "2134"]
[Result "1-0"]
[Round "04"]
[TimeControl "180+1"]
[Date "2021.08.17"]
[WhiteClock "0:00:33"]
[BlackClock "0:00:13"]

1. b3 {[%clk 0:03:00]}  Nc6 {[%clk 0:02:56]} 2. Bb2 {[%clk 0:03:00]}  e5 {[%clk 0:02:56]} 3. c4 {[%clk 0:03:00]}  f5 {[%clk 0:02:56]} 4. e3 {[%clk 0:02:58]}  Nf6 {[%clk 0:02:56]} 5. d4 {[%clk 0:02:58]}  Bb4+ {[%clk 0:02:56]} 6. Nd2 {[%clk 0:02:55]}  exd4 {[%clk 0:02:52]} 7. exd4 {[%clk 0:02:55]}  O-O {[%clk 0:02:52]} 8. d5 {[%clk 0:02:53]}  Re8+ {[%clk 0:02:46]} 9. Be2 {[%clk 0:02:53]}  Ne5 {[%clk 0:02:44]} 10. Bxe5 {[%clk 0:02:50]}  Rxe5 {[%clk 0:02:45]} 11. Nf3 {[%clk 0:02:50]}  Re8 {[%clk 0:02:43]} 12. O-O {[%clk 0:02:51]}  Ne4 {[%clk 0:02:29]} 13. Bd3 {[%clk 0:02:40]}  d6 {[%clk 0:02:20]} 14. Qc2 {[%clk 0:02:39]}  Nxd2 {[%clk 0:02:15]} 15. Nxd2 {[%clk 0:02:40]}  Qf6 {[%clk 0:02:12]} 16. Nf3 {[%clk 0:02:38]}  a5 {[%clk 0:02:05]} 17. a3 {[%clk 0:02:09]}  Bc5 {[%clk 0:01:50]} 18. Qc1 {[%clk 0:01:59]}  Bd7 {[%clk 0:01:33]} 19. Rb1 {[%clk 0:01:58]}  Bb6 {[%clk 0:01:20]} 20. Re1 {[%clk 0:01:53]}  Rxe1+ {[%clk 0:01:12]} 21. Qxe1 {[%clk 0:01:53]}  Re8 {[%clk 0:01:12]} 22. Qd2 {[%clk 0:01:54]}  g5 {[%clk 0:01:07]} 23. Qxg5+ {[%clk 0:01:51]}  Qxg5 {[%clk 0:01:07]} 24. Nxg5 {[%clk 0:01:52]}  Kg7 {[%clk 0:01:06]} 25. Kf1 {[%clk 0:01:51]}  h6 {[%clk 0:01:05]} 26. Nf3 {[%clk 0:01:51]}  Kf6 {[%clk 0:01:05]} 27. Re1 {[%clk 0:01:43]}  Rxe1+ {[%clk 0:00:39]} 28. Kxe1 {[%clk 0:01:44]}  Be8 {[%clk 0:00:32]} 29. Nh4 {[%clk 0:01:35]}  Bd7 {[%clk 0:00:31]} 30. f4 {[%clk 0:01:30]}  a4 {[%clk 0:00:30]} 31. bxa4 {[%clk 0:01:28]}  Bc5 {[%clk 0:00:28]} 32. Bc2 {[%clk 0:01:26]}  Bxa3 {[%clk 0:00:27]} 33. g3 {[%clk 0:01:27]}  Bc5 {[%clk 0:00:22]} 34. Kf1 {[%clk 0:01:27]}  Bd4 {[%clk 0:00:19]} 35. Ke2 {[%clk 0:01:23]}  Bc5 {[%clk 0:00:19]} 36. Kf1 {[%clk 0:01:21]}  Bd4 {[%clk 0:00:20]} 37. Kg2 {[%clk 0:01:21]}  Bc5 {[%clk 0:00:20]} 38. Kf3 {[%clk 0:01:18]}  Bc8 {[%clk 0:00:19]} 39. Ng2 {[%clk 0:01:15]}  Bd7 {[%clk 0:00:13]} 40. Ne3 {[%clk 0:01:15]}  Bc8 {[%clk 0:00:13]} 41. h3 {[%clk 0:01:14]}  Bd7 {[%clk 0:00:14]} 42. Ng2 {[%clk 0:01:04]}  Bd4 {[%clk 0:00:13]} 43. Nh4 {[%clk 0:01:04]}  Bc5 {[%clk 0:00:13]} 44. g4 {[%clk 0:01:04]}  fxg4+ {[%clk 0:00:14]} 45. hxg4 {[%clk 0:01:04]}  Bd4 {[%clk 0:00:14]} 46. Kg3 {[%clk 0:01:04]}  Bc3 {[%clk 0:00:14]} 47. Nf3 {[%clk 0:01:04]}  Kg7 {[%clk 0:00:13]} 48. g5 {[%clk 0:01:02]}  hxg5 {[%clk 0:00:13]} 49. fxg5 {[%clk 0:01:03]}  Bb2 {[%clk 0:00:13]} 50. Kh4 {[%clk 0:00:50]}  Bc1 {[%clk 0:00:14]} 51. Kh5 {[%clk 0:00:50]}  Be8+ {[%clk 0:00:13]} 52. Kg4 {[%clk 0:00:47]}  Bd7+ {[%clk 0:00:12]} 53. Kh5 {[%clk 0:00:42]}  Be8+ {[%clk 0:00:13]} 54. g6 {[%clk 0:00:42]}  Be3 {[%clk 0:00:13]} 55. Nh4 {[%clk 0:00:40]}  Bd7 {[%clk 0:00:14]} 56. Ng2 {[%clk 0:00:32]}  Bd2 {[%clk 0:00:13]} 57. Nh4 {[%clk 0:00:31]}  Be3 {[%clk 0:00:13]} 58. Nf3 {[%clk 0:00:32]}  Be8 {[%clk 0:00:13]} 59. Ng5 {[%clk 0:00:31]}  Bxg5 {[%clk 0:00:12]} 60. Kxg5 {[%clk 0:00:32]}  Bd7 {[%clk 0:00:12]} 61. a5 {[%clk 0:00:32]}  b6 {[%clk 0:00:12]} 62. a6 {[%clk 0:00:32]}  Bc8 {[%clk 0:00:12]} 63. a7 {[%clk 0:00:33]}  Bb7 {[%clk 0:00:13]} 64. Ba4 {[%clk 0:00:33]} 1-0


[Site "https://www.chess.com"]

[Event "Titled Tuesday Blitz August 17 2021"]
[White "Singh, Ojasva"]
[Black "Przybylski, Wojciech"]
[WhiteFideId "25681958"]
[BlackFideId "1117599"]
[WhiteElo "1741"]
[BlackElo "2250"]
[Result "0-1"]
[Round "04"]
[TimeControl "180+1"]
[Date "2021.08.18"]
[WhiteClock "0:00:01"]
[BlackClock "0:00:05"]

1. e4 {[%clk 0:03:00]}  c5 {[%clk 0:02:59]} 2. Nf3 {[%clk 0:02:59]}  d6 {[%clk 0:02:59]} 3. d4 {[%clk 0:02:54]}  cxd4 {[%clk 0:03:00]} 4. Nxd4 {[%clk 0:02:54]}  Nf6 {[%clk 0:03:00]} 5. f3 {[%clk 0:02:54]}  e5 {[%clk 0:02:59]} 6. Nb3 {[%clk 0:02:52]}  Be6 {[%clk 0:02:59]} 7. c4 {[%clk 0:02:51]}  Be7 {[%clk 0:02:57]} 8. Nc3 {[%clk 0:02:51]}  O-O {[%clk 0:02:57]} 9. Be3 {[%clk 0:02:51]}  Nbd7 {[%clk 0:02:55]} 10. Be2 {[%clk 0:02:51]}  a6 {[%clk 0:02:54]} 11. O-O {[%clk 0:02:51]}  Re8 {[%clk 0:02:53]} 12. Nd2 {[%clk 0:02:48]}  Rc8 {[%clk 0:02:52]} 13. b4 {[%clk 0:02:48]}  Nb6 {[%clk 0:02:50]} 14. Nd5 {[%clk 0:02:48]}  Nfxd5 {[%clk 0:02:41]} 15. cxd5 {[%clk 0:02:44]}  Bd7 {[%clk 0:02:40]} 16. a4 {[%clk 0:02:43]}  f5 {[%clk 0:02:39]} 17. a5 {[%clk 0:02:32]}  Na8 {[%clk 0:02:37]} 18. Rc1 {[%clk 0:02:25]}  Bg5 {[%clk 0:02:37]} 19. Bf2 {[%clk 0:02:19]}  Nc7 {[%clk 0:02:30]} 20. Bb6 {[%clk 0:02:16]}  Re7 {[%clk 0:01:57]} 21. Rc3 {[%clk 0:01:14]}  Be8 {[%clk 0:01:28]} 22. exf5 {[%clk 0:01:09]}  Qd7 {[%clk 0:01:23]} 23. Ne4 {[%clk 0:01:04]}  Bh6 {[%clk 0:01:09]} 24. Qc2 {[%clk 0:00:54]}  Kh8 {[%clk 0:00:26]} 25. f6 {[%clk 0:00:26]}  Rf7 {[%clk 0:00:26]} 26. Bxc7 {[%clk 0:00:16]}  Rxc7 {[%clk 0:00:25]} 27. Rxc7 {[%clk 0:00:17]}  Qxc7 {[%clk 0:00:26]} 28. Qxc7 {[%clk 0:00:17]}  Rxc7 {[%clk 0:00:26]} 29. Nxd6 {[%clk 0:00:17]}  Bg6 {[%clk 0:00:23]} 30. f7 {[%clk 0:00:17]}  Bxf7 {[%clk 0:00:22]} 31. Nxf7+ {[%clk 0:00:17]}  Rxf7 {[%clk 0:00:22]} 32. b5 {[%clk 0:00:11]}  Be3+ {[%clk 0:00:21]} 33. Kh1 {[%clk 0:00:11]}  Rd7 {[%clk 0:00:21]} 34. bxa6 {[%clk 0:00:10]}  bxa6 {[%clk 0:00:21]} 35. Bc4 {[%clk 0:00:08]}  g6 {[%clk 0:00:18]} 36. g3 {[%clk 0:00:06]}  Bd2 {[%clk 0:00:17]} 37. Ra1 {[%clk 0:00:05]}  Rd6 {[%clk 0:00:17]} 38. Ra2 {[%clk 0:00:05]}  Bc3 {[%clk 0:00:16]} 39. Kg2 {[%clk 0:00:05]}  Kg7 {[%clk 0:00:15]} 40. Kf2 {[%clk 0:00:05]}  Kf6 {[%clk 0:00:15]} 41. Ke3 {[%clk 0:00:05]}  Kf5 {[%clk 0:00:13]} 42. g4+ {[%clk 0:00:05]}  Kf6 {[%clk 0:00:13]} 43. Ke4 {[%clk 0:00:05]}  Kg5 {[%clk 0:00:12]} 44. h4+ {[%clk 0:00:02]}  Kxh4 {[%clk 0:00:09]} 45. Rh2+ {[%clk 0:00:02]}  Kg5 {[%clk 0:00:09]} 46. Rxh7 {[%clk 0:00:03]}  Bxa5 {[%clk 0:00:08]} 47. Ra7 {[%clk 0:00:02]}  Bc3 {[%clk 0:00:06]} 48. Rxa6 {[%clk 0:00:01]}  Rd8 {[%clk 0:00:05]} 0-1


[Site "https://www.chess.com"]

[Event "Titled Tuesday Blitz August 17 2021"]
[White "Slavin, Alexey"]
[Black "Hambleton, Aman"]
[WhiteFideId "24104388"]
[BlackFideId "2606577"]
[WhiteElo "2262"]
[BlackElo "2552"]
[Result "0-1"]
[Round "04"]
[TimeControl "180+1"]
[Date "2021.08.18"]
[WhiteClock "0:00:08"]
[BlackClock "0:00:19"]

1. e4 {[%clk 0:03:00]}  b6 {[%clk 0:02:57]} 2. d4 {[%clk 0:02:57]}  Bb7 {[%clk 0:02:57]} 3. f3 {[%clk 0:02:56]}  e6 {[%clk 0:02:57]} 4. c4 {[%clk 0:02:55]}  f5 {[%clk 0:02:36]} 5. exf5 {[%clk 0:02:50]}  exf5 {[%clk 0:02:37]} 6. Bd3 {[%clk 0:02:44]}  Qh4+ {[%clk 0:02:32]} 7. Kf1 {[%clk 0:02:29]}  Qxd4 {[%clk 0:02:31]} 8. Ne2 {[%clk 0:02:29]}  Qf6 {[%clk 0:02:30]} 9. Nbc3 {[%clk 0:02:22]}  Ne7 {[%clk 0:02:16]} 10. h4 {[%clk 0:02:15]}  g6 {[%clk 0:02:14]} 11. Bg5 {[%clk 0:02:13]}  Qf7 {[%clk 0:02:15]} 12. h5 {[%clk 0:01:37]}  Bg7 {[%clk 0:02:13]} 13. hxg6 {[%clk 0:01:35]}  hxg6 {[%clk 0:02:14]} 14. Rxh8+ {[%clk 0:01:33]}  Bxh8 {[%clk 0:02:15]} 15. Qd2 {[%clk 0:01:28]}  Nbc6 {[%clk 0:02:09]} 16. a3 {[%clk 0:01:03]}  O-O-O {[%clk 0:02:01]} 17. b4 {[%clk 0:00:59]}  Bf6 {[%clk 0:01:59]} 18. Be3 {[%clk 0:00:41]}  Rh8 {[%clk 0:01:58]} 19. Bg1 {[%clk 0:00:34]}  Ne5 {[%clk 0:01:57]} 20. c5 {[%clk 0:00:31]}  Nxd3 {[%clk 0:01:37]} 21. Qxd3 {[%clk 0:00:31]}  Nd5 {[%clk 0:01:38]} 22. Rc1 {[%clk 0:00:28]}  Nxc3 {[%clk 0:01:35]} 23. Nxc3 {[%clk 0:00:28]}  Kb8 {[%clk 0:01:15]} 24. cxb6 {[%clk 0:00:26]}  axb6 {[%clk 0:01:16]} 25. Nb5 {[%clk 0:00:20]}  Qd5 {[%clk 0:00:35]} 26. Qxd5 {[%clk 0:00:17]}  Bxd5 {[%clk 0:00:35]} 27. Nxc7 {[%clk 0:00:17]}  Bc6 {[%clk 0:00:36]} 28. b5 {[%clk 0:00:15]}  Kxc7 {[%clk 0:00:33]} 29. bxc6 {[%clk 0:00:16]}  dxc6 {[%clk 0:00:34]} 30. Ke2 {[%clk 0:00:13]}  Ra8 {[%clk 0:00:32]} 31. Rb1 {[%clk 0:00:09]}  c5 {[%clk 0:00:32]} 32. Rb3 {[%clk 0:00:09]}  Kc6 {[%clk 0:00:31]} 33. Be3 {[%clk 0:00:09]}  b5 {[%clk 0:00:30]} 34. Kf2 {[%clk 0:00:09]}  c4 {[%clk 0:00:30]} 35. Rb1 {[%clk 0:00:10]}  Rxa3 {[%clk 0:00:29]} 36. Bf4 {[%clk 0:00:10]}  g5 {[%clk 0:00:25]} 37. Bb8 {[%clk 0:00:09]}  f4 {[%clk 0:00:19]} 38. g3 {[%clk 0:00:08]}  Ra2+ {[%clk 0:00:18]} 39. Kf1 {[%clk 0:00:08]}  fxg3 {[%clk 0:00:18]} 40. Bxg3 {[%clk 0:00:08]}  Ra1 {[%clk 0:00:19]} 41. Rxa1 {[%clk 0:00:07]}  Bxa1 {[%clk 0:00:19]} 42. Ke2 {[%clk 0:00:08]}  Kd5 {[%clk 0:00:19]} 43. Kd1 {[%clk 0:00:08]}  Be5 {[%clk 0:00:19]} 44. Bf2 {[%clk 0:00:07]}  b4 {[%clk 0:00:19]} 45. Kc2 {[%clk 0:00:08]}  b3+ {[%clk 0:00:19]} 0-1


[Site "https://www.chess.com"]

[Event "Titled Tuesday Blitz August 17 2021"]
[White "Solon, Nathan"]
[Black "Khabinets, Ivan"]
[WhiteFideId "2017229"]
[BlackFideId "14115980"]
[WhiteElo "2679"]
[BlackElo "2114"]
[Result "1-0"]
[Round "04"]
[TimeControl "180+1"]
[Date "2021.08.17"]
[WhiteClock "0:01:07"]
[BlackClock "0:00:30"]

1. d4 {[%clk 0:03:00]}  Nf6 {[%clk 0:02:58]} 2. c4 {[%clk 0:03:00]}  e6 {[%clk 0:02:58]} 3. g3 {[%clk 0:03:00]}  d5 {[%clk 0:02:58]} 4. Bg2 {[%clk 0:03:00]}  Bb4+ {[%clk 0:02:57]} 5. Nd2 {[%clk 0:03:00]}  O-O {[%clk 0:02:57]} 6. Nf3 {[%clk 0:03:00]}  a5 {[%clk 0:02:56]} 7. O-O {[%clk 0:02:59]}  a4 {[%clk 0:02:56]} 8. Qc2 {[%clk 0:02:49]}  c6 {[%clk 0:02:56]} 9. e4 {[%clk 0:02:45]}  Be7 {[%clk 0:02:53]} 10. Rd1 {[%clk 0:02:34]}  b6 {[%clk 0:02:49]} 11. e5 {[%clk 0:02:28]}  Nfd7 {[%clk 0:02:48]} 12. cxd5 {[%clk 0:02:26]}  cxd5 {[%clk 0:02:48]} 13. Bf1 {[%clk 0:02:22]}  Bb7 {[%clk 0:02:38]} 14. Bd3 {[%clk 0:02:22]}  h6 {[%clk 0:02:37]} 15. Nf1 {[%clk 0:02:20]}  Nc6 {[%clk 0:02:36]} 16. a3 {[%clk 0:02:19]}  Qc7 {[%clk 0:02:01]} 17. h4 {[%clk 0:02:14]}  Rfc8 {[%clk 0:02:01]} 18. Qe2 {[%clk 0:02:05]}  Na5 {[%clk 0:01:56]} 19. Bf4 {[%clk 0:01:55]}  Nb3 {[%clk 0:01:52]} 20. Rab1 {[%clk 0:01:54]}  Ra5 {[%clk 0:01:38]} 21. Ne3 {[%clk 0:01:52]}  Bf8 {[%clk 0:01:31]} 22. g4 {[%clk 0:01:48]}  Nb8 {[%clk 0:01:14]} 23. g5 {[%clk 0:01:46]}  Ba6 {[%clk 0:01:10]} 24. Bxa6 {[%clk 0:01:37]}  Rxa6 {[%clk 0:01:10]} 25. gxh6 {[%clk 0:01:37]}  gxh6 {[%clk 0:01:09]} 26. Kh2 {[%clk 0:01:32]}  f5 {[%clk 0:00:52]} 27. Rg1+ {[%clk 0:01:19]}  Kh8 {[%clk 0:00:46]} 28. Rg6 {[%clk 0:01:18]}  Qf7 {[%clk 0:00:40]} 29. Rbg1 {[%clk 0:01:12]}  Nc6 {[%clk 0:00:35]} 30. Qxa6 {[%clk 0:01:10]}  Rc7 {[%clk 0:00:30]} 31. Qxa4 {[%clk 0:01:07]} 1-0


[Site "https://www.chess.com"]

[Event "Titled Tuesday Blitz August 17 2021"]
[White "Stribuk, Artiom"]
[Black "Thing, Bibek"]
[WhiteFideId "13515659"]
[BlackFideId "12303135"]
[WhiteElo "2224"]
[BlackElo "2000"]
[Result "1-0"]
[Round "04"]
[TimeControl "180+1"]
[Date "2021.08.17"]
[WhiteClock "0:00:06"]
[BlackClock "0:00:04"]

1. d4 {[%clk 0:03:00]}  Nf6 {[%clk 0:02:54]} 2. c4 {[%clk 0:03:00]}  g6 {[%clk 0:02:54]} 3. g3 {[%clk 0:02:57]}  d5 {[%clk 0:02:49]} 4. cxd5 {[%clk 0:02:56]}  Bg7 {[%clk 0:02:47]} 5. Bg2 {[%clk 0:02:54]}  Nxd5 {[%clk 0:02:45]} 6. Nf3 {[%clk 0:02:54]}  O-O {[%clk 0:02:45]} 7. O-O {[%clk 0:02:54]}  Bf5 {[%clk 0:02:20]} 8. Nc3 {[%clk 0:02:48]}  Nxc3 {[%clk 0:02:18]} 9. bxc3 {[%clk 0:02:48]}  Be4 {[%clk 0:02:11]} 10. Bh3 {[%clk 0:02:48]}  c6 {[%clk 0:02:08]} 11. Nd2 {[%clk 0:02:48]}  Bf5 {[%clk 0:01:56]} 12. Bg2 {[%clk 0:02:46]}  Nd7 {[%clk 0:01:52]} 13. e4 {[%clk 0:02:45]}  Be6 {[%clk 0:01:51]} 14. Bb2 {[%clk 0:02:10]}  Nb6 {[%clk 0:01:49]} 15. Qe2 {[%clk 0:02:02]}  Na4 {[%clk 0:01:44]} 16. Rfb1 {[%clk 0:02:02]}  Rb8 {[%clk 0:01:36]} 17. Qd3 {[%clk 0:01:53]}  c5 {[%clk 0:01:26]} 18. d5 {[%clk 0:01:36]}  b5 {[%clk 0:01:22]} 19. Qe3 {[%clk 0:01:24]}  Bd7 {[%clk 0:01:13]} 20. Nb3 {[%clk 0:01:00]}  b4 {[%clk 0:00:44]} 21. e5 {[%clk 0:00:57]}  Bf5 {[%clk 0:00:43]} 22. cxb4 {[%clk 0:00:41]}  Bxb1 {[%clk 0:00:41]} 23. Rxb1 {[%clk 0:00:41]}  c4 {[%clk 0:00:36]} 24. Nc5 {[%clk 0:00:32]}  Rxb4 {[%clk 0:00:33]} 25. Nxa4 {[%clk 0:00:30]}  Rxa4 {[%clk 0:00:33]} 26. a3 {[%clk 0:00:26]}  Qb6 {[%clk 0:00:29]} 27. Qxb6 {[%clk 0:00:23]}  axb6 {[%clk 0:00:30]} 28. f4 {[%clk 0:00:15]}  Rc8 {[%clk 0:00:26]} 29. Bc1 {[%clk 0:00:15]}  Ra6 {[%clk 0:00:23]} 30. Bf1 {[%clk 0:00:14]}  f6 {[%clk 0:00:21]} 31. e6 {[%clk 0:00:07]}  f5 {[%clk 0:00:21]} 32. Rb4 {[%clk 0:00:08]}  Ra5 {[%clk 0:00:14]} 33. Bg2 {[%clk 0:00:03]}  Bc3 {[%clk 0:00:10]} 34. Rb1 {[%clk 0:00:02]}  Bd4+ {[%clk 0:00:09]} 35. Kf1 {[%clk 0:00:03]}  c3 {[%clk 0:00:09]} 36. Ke2 {[%clk 0:00:03]}  c2 {[%clk 0:00:09]} 37. Rb3 {[%clk 0:00:04]}  Rac5 {[%clk 0:00:09]} 38. Kd3 {[%clk 0:00:04]}  Rc3+ {[%clk 0:00:07]} 39. Rxc3 {[%clk 0:00:03]}  Bxc3 {[%clk 0:00:08]} 40. Kxc2 {[%clk 0:00:03]}  Bd4+ {[%clk 0:00:06]} 41. Kd1 {[%clk 0:00:04]}  Bc5 {[%clk 0:00:07]} 42. Bf1 {[%clk 0:00:03]}  Bd6 {[%clk 0:00:07]} 43. Be3 {[%clk 0:00:02]}  Rb8 {[%clk 0:00:08]} 44. a4 {[%clk 0:00:02]}  Kf8 {[%clk 0:00:09]} 45. Bb5 {[%clk 0:00:03]}  Rb7 {[%clk 0:00:08]} 46. Bd4 {[%clk 0:00:03]}  Bc5 {[%clk 0:00:08]} 47. Be5 {[%clk 0:00:03]}  Ra7 {[%clk 0:00:09]} 48. Ke2 {[%clk 0:00:03]}  Bd6 {[%clk 0:00:09]} 49. Bd4 {[%clk 0:00:04]}  Bc5 {[%clk 0:00:09]} 50. Be5 {[%clk 0:00:04]}  Rb7 {[%clk 0:00:10]} 51. Kd3 {[%clk 0:00:04]}  Bd6 {[%clk 0:00:10]} 52. Bd4 {[%clk 0:00:05]}  Bc5 {[%clk 0:00:10]} 53. Be5 {[%clk 0:00:06]}  Bd6 {[%clk 0:00:10]} 54. Bc3 {[%clk 0:00:06]}  h6 {[%clk 0:00:09]} 55. Bc6 {[%clk 0:00:06]}  Ra7 {[%clk 0:00:10]} 56. h3 {[%clk 0:00:06]}  g5 {[%clk 0:00:09]} 57. fxg5 {[%clk 0:00:06]}  hxg5 {[%clk 0:00:10]} 58. g4 {[%clk 0:00:06]}  f4 {[%clk 0:00:11]} 59. Ke4 {[%clk 0:00:06]}  Bc5 {[%clk 0:00:07]} 60. Be5 {[%clk 0:00:04]}  Bd6 {[%clk 0:00:07]} 61. Bd4 {[%clk 0:00:05]}  Bc5 {[%clk 0:00:07]} 62. Bc3 {[%clk 0:00:05]}  Ra6 {[%clk 0:00:06]} 63. Bb5 {[%clk 0:00:05]}  Ra7 {[%clk 0:00:06]} 64. Be5 {[%clk 0:00:05]}  Ra8 {[%clk 0:00:06]} 65. h4 {[%clk 0:00:05]}  gxh4 {[%clk 0:00:06]} 66. Kxf4 {[%clk 0:00:05]}  Bd6 {[%clk 0:00:06]} 67. Bxd6 {[%clk 0:00:05]}  exd6 {[%clk 0:00:07]} 68. g5 {[%clk 0:00:04]}  Ke7 {[%clk 0:00:07]} 69. Kg4 {[%clk 0:00:04]}  Rh8 {[%clk 0:00:07]} 70. Kh3 {[%clk 0:00:04]}  Rh5 {[%clk 0:00:07]} 71. Bc6 {[%clk 0:00:03]}  Rxg5 {[%clk 0:00:07]} 72. Kxh4 {[%clk 0:00:04]}  Re5 {[%clk 0:00:06]} 73. Kg4 {[%clk 0:00:04]}  Re4+ {[%clk 0:00:06]} 74. Kf3 {[%clk 0:00:05]}  Rb4 {[%clk 0:00:07]} 75. Ke3 {[%clk 0:00:05]}  Rh4 {[%clk 0:00:07]} 76. Kd3 {[%clk 0:00:06]}  Rh5 {[%clk 0:00:07]} 77. Kc4 {[%clk 0:00:06]}  Rh1 {[%clk 0:00:05]} 78. Kb5 {[%clk 0:00:06]}  Rb1+ {[%clk 0:00:05]} 79. Ka6 {[%clk 0:00:07]}  Rb2 {[%clk 0:00:06]} 80. Kb7 {[%clk 0:00:07]}  Rb1 {[%clk 0:00:06]} 81. Bb5 {[%clk 0:00:07]}  Rb2 {[%clk 0:00:06]} 82. Kxb6 {[%clk 0:00:07]}  Rd2 {[%clk 0:00:07]} 83. Kc6 {[%clk 0:00:07]}  Rc2+ {[%clk 0:00:07]} 84. Kb7 {[%clk 0:00:07]}  Rd2 {[%clk 0:00:07]} 85. Kc6 {[%clk 0:00:07]}  Rc2+ {[%clk 0:00:07]} 86. Kb6 {[%clk 0:00:08]}  Rd2 {[%clk 0:00:08]} 87. a5 {[%clk 0:00:09]}  Rxd5 {[%clk 0:00:08]} 88. a6 {[%clk 0:00:10]}  Rc5 {[%clk 0:00:06]} 89. a7 {[%clk 0:00:08]}  Rc8 {[%clk 0:00:06]} 90. Kb7 {[%clk 0:00:07]}  Rh8 {[%clk 0:00:04]} 91. Bc4 {[%clk 0:00:07]}  Kf6 {[%clk 0:00:04]} 92. a8=Q {[%clk 0:00:07]}  Ke5 {[%clk 0:00:04]} 93. Qxh8+ {[%clk 0:00:06]} 1-0


[Site "https://www.chess.com"]